bitfinex/quotes_BTCUSD_20250614
["timestamp","ask_amount","ask_price","bid_price","bid_amount"]
[1749866342529,6.05882548,105570.0,105560.0,0.03060688]
[1749866342738,6.05882548,105570.0,105560.0,0.03728617]
[1749866342951,6.05882548,105570.0,105560.0,0.03062897]
[1749866343180,6.05882548,105570.0,105560.0,0.03428602]
[1749866343388,6.08751054,105570.0,105560.0,0.002]
[1749866343586,6.08751054,105570.0,105560.0,0.009877]
[1749866343799,6.08751054,105570.0,105560.0,0.00987707]
[1749866344232,6.06482548,105570.0,105560.0,0.00987707]
[1749866344436,6.06482548,105570.0,105560.0,0.001]
[1749866344661,6.06482548,105570.0,105560.0,0.00987707]
[1749866345089,6.07682548,105570.0,105560.0,0.01087707]
[1749866346044,6.07682548,105570.0,105560.0,0.01975415]
[1749866346259,6.09950146,105570.0,105560.0,0.01087772]
[1749866346470,6.09950146,105570.0,105560.0,0.002]
[1749866349643,6.12795746,105570.0,105560.0,0.002]
[1749866351156,6.10528148,105570.0,105560.0,0.002]
[1749866353075,6.12792575,105570.0,105560.0,0.002]
[1749866355724,6.42792575,105570.0,105560.0,0.002]
[1749866358894,6.58296575,105570.0,105560.0,0.002]
[1749866359584,1.64521075,105570.0,105560.0,0.002]
[1749866359821,6.58296575,105570.0,105560.0,0.002]
[1749866362524,6.61126243,105570.0,105560.0,0.002]
[1749866367545,7.34913382,105570.0,105560.0,0.002]
[1749866368005,7.34313382,105570.0,105560.0,0.001]
[1749866368368,7.35513382,105570.0,105560.0,0.002]
[1749866368789,7.34313382,105570.0,105560.0,0.001]
[1749866368917,7.36113382,105570.0,105560.0,0.003]
[1749866369974,7.33283714,105570.0,105560.0,0.003]
[1749866370281,6.63283714,105570.0,105560.0,0.003]
[1749866370833,6.50587735,105570.0,105560.0,0.003]
[1749866371676,1.56812235,105570.0,105560.0,0.003]
[1749866371893,6.50587735,105570.0,105560.0,0.003]
[1749866373025,6.49487735,105570.0,105560.0,0.003]
[1749866373444,7.19487735,105570.0,105560.0,0.003]
[1749866373851,7.21267735,105570.0,105560.0,0.003]
[1749866374059,7.22677735,105570.0,105560.0,0.003]
[1749866374260,7.92677735,105570.0,105560.0,0.003]
[1749866374461,7.22677735,105570.0,105560.0,0.003]
[1749866375900,7.21267735,105570.0,105560.0,0.003]
[1749866376108,7.19487735,105570.0,105560.0,0.003]
[1749866376519,7.46779735,105570.0,105560.0,0.003]
[1749866376925,2.53004235,105570.0,105560.0,0.003]
[1749866377179,7.46779735,105570.0,105560.0,0.003]
[1749866378422,6.76779735,105570.0,105560.0,0.003]
[1749866379007,1.83004235,105570.0,105560.0,0.003]
[1749866379219,6.76779735,105570.0,105560.0,0.003]
[1749866380911,6.77729336,105570.0,105560.0,0.003]
[1749866381325,7.47729336,105570.0,105560.0,0.003]
[1749866387221,7.53410045,105570.0,105560.0,0.003]
[1749866387428,6.83874045,105570.0,105560.0,0.0199]
[1749866387638,7.17725336,105570.0,105560.0,0.0368]
[1749866388052,7.22725336,105570.0,105560.0,0.0368]
[1749866388262,7.20566058,105570.0,105560.0,0.0368]
[1749866388467,6.47725336,105570.0,105560.0,0.0368]
[1749866388701,6.52725336,105570.0,105560.0,0.0368]
[1749866389525,6.58406045,105570.0,105560.0,0.0199]
[1749866390574,6.58406045,105570.0,105560.0,0.003]
[1749866391729,6.68382045,105570.0,105560.0,0.003]
[1749866391934,6.58406045,105570.0,105560.0,0.003]
[1749866392665,6.61306045,105570.0,105560.0,0.003]
[1749866393081,6.58406045,105570.0,105560.0,0.003]
[1749866398045,1.64630545,105570.0,105560.0,0.003]
[1749866398284,6.58406045,105570.0,105560.0,0.003]
[1749866399953,6.54618906,105570.0,105560.0,0.003]
[1749866400223,1.60843406,105570.0,105560.0,0.003]
[1749866400373,6.54618906,105570.0,105560.0,0.003]
[1749866401205,6.59508906,105570.0,105560.0,0.003]
[1749866401409,6.60408437,105570.0,105560.0,0.003]
[1749866401607,6.56618906,105570.0,105560.0,0.003]
[1749866402019,7.26618906,105570.0,105560.0,0.003]
[1749866402221,7.26618906,105570.0,105560.0,0.0202]
[1749866402427,7.49614906,105570.0,105560.0,0.0369]
[1749866403039,7.44614906,105570.0,105560.0,0.0369]
[1749866403463,1.65100839,105570.0,105560.0,0.0369]
[1749866403837,6.78404339,105570.0,105560.0,0.0369]
[1749866405889,6.83404339,105570.0,105560.0,0.0369]
[1749866406295,6.58876339,105570.0,105560.0,0.0369]
[1749866406501,6.78404339,105570.0,105560.0,0.0369]
[1749866406728,6.83404339,105570.0,105560.0,0.0369]
[1749866408000,6.63876339,105570.0,105560.0,0.0369]
[1749866408200,6.7272363,105570.0,105560.0,0.0369]
[1749866410527,6.72732613,105570.0,105560.0,0.0369]
[1749866410702,6.73227306,105570.0,105560.0,0.0369]
[1749866411153,6.78227306,105570.0,105560.0,0.0369]
[1749866414341,6.73227306,105570.0,105560.0,0.0369]
[1749866415154,6.78227306,105570.0,105560.0,0.0369]
[1749866415656,6.73227306,105570.0,105560.0,0.0369]
[1749866416720,1.79451806,105570.0,105560.0,0.0369]
[1749866416948,6.73227306,105570.0,105560.0,0.0369]
[1749866417371,6.06699306,105570.0,105560.0,0.0369]
[1749866417624,6.48227306,105570.0,105560.0,0.0369]
[1749866418115,6.28699306,105570.0,105560.0,0.0369]
[1749866418580,6.48227306,105570.0,105560.0,0.0369]
[1749866418828,6.31540835,105570.0,105560.0,0.0369]
[1749866419081,6.51068835,105570.0,105560.0,0.0369]
[1749866419318,6.31540835,105570.0,105560.0,0.0369]
[1749866419793,6.51068835,105570.0,105560.0,0.0369]
[1749866420034,5.94325317,105570.0,105560.0,0.0369]
[1749866420289,6.06983788,105570.0,105560.0,0.0369]
[1749866420506,6.20983788,105570.0,105560.0,0.05464138]
[1749866420771,6.20983788,105570.0,105560.0,0.0369]
[1749866421007,6.01455788,105570.0,105560.0,0.05464136]
[1749866421244,6.20983788,105570.0,105560.0,0.0369]
[1749866421477,5.71483788,105570.0,105560.0,0.06351173]
[1749866421736,6.20983788,105570.0,105560.0,0.06351141]
[1749866421972,6.20983788,105570.0,105560.0,0.06986165]
[1749866422183,6.20983788,105570.0,105560.0,0.06351037]
[1749866422410,6.05483788,105570.0,105560.0,0.06351035]
[1749866422629,6.18215685,105570.0,105560.0,0.07016281]
[1749866422900,6.18215685,105570.0,105560.0,0.04355205]
[1749866423126,6.18215685,105570.0,105560.0,0.06129064]
[1749866423346,6.18215685,105570.0,105560.0,0.07015989]
[1749866423568,0.79316009,105570.0,105560.0,0.07628892]
[1749866423797,0.94816009,105570.0,105560.0,0.06963613]
[1749866424022,0.94816009,105570.0,105560.0,0.07628556]
[1749866424241,0.94816009,105570.0,105560.0,0.0457684]
[1749866424460,0.94816009,105570.0,105560.0,0.05241938]
[1749866424703,0.94816009,105570.0,105560.0,0.07015571]
[1749866424921,0.94816009,105570.0,105560.0,0.05241928]
[1749866425139,0.94816009,105570.0,105560.0,0.06128727]
[1749866425377,0.94816009,105570.0,105560.0,0.0369]
[1749866428155,0.75288009,105570.0,105560.0,0.0369]
[1749866428532,0.94812009,105570.0,105560.0,0.0369]
[1749866430866,5.88587509,105570.0,105560.0,0.0369]
[1749866432000,5.69063509,105570.0,105560.0,0.0369]
[1749866432223,5.88587509,105570.0,105560.0,0.0369]
[1749866433621,5.69063509,105570.0,105560.0,0.0369]
[1749866433794,5.88587509,105570.0,105560.0,0.0369]
[1749866435596,5.69063509,105570.0,105560.0,0.0369]
[1749866435798,5.88587509,105570.0,105560.0,0.0369]
[1749866438319,5.69063509,105570.0,105560.0,0.0369]
[1749866438526,5.88587509,105570.0,105560.0,0.0369]
[1749866440093,5.88587509,105570.0,105560.0,0.05242937]
[1749866440304,5.88587509,105570.0,105560.0,0.06352179]
[1749866440544,5.88587509,105570.0,105560.0,0.04577393]
[1749866440720,5.88587509,105570.0,105560.0,0.07017723]
[1749866440945,5.88587509,105570.0,105560.0,0.0369]
[1749866441149,5.88587509,105570.0,105560.0,0.05464812]
[1749866441354,5.88587509,105570.0,105560.0,0.04577406]
[1749866441566,5.88587509,105570.0,105560.0,0.04355554]
[1749866441798,5.88587509,105570.0,105560.0,0.0524296]
[1749866442015,5.88587509,105570.0,105560.0,0.07017772]
[1749866442229,5.88587509,105570.0,105560.0,0.06130366]
[1749866442431,5.88587509,105570.0,105560.0,0.06352218]
[1749866442635,5.88587509,105570.0,105560.0,0.0613037]
[1749866442843,5.88587509,105570.0,105560.0,0.07017778]
[1749866443048,5.88587509,105570.0,105560.0,0.05242963]
[1749866443252,5.88587509,105570.0,105560.0,0.07017779]
[1749866443457,5.88587509,105570.0,105560.0,0.06352224]
[1749866443864,5.88587509,105570.0,105560.0,0.07017781]
[1749866444067,5.88587509,105570.0,105560.0,0.07017782]
[1749866444241,5.88587509,105570.0,105560.0,0.06130373]
[1749866444451,5.88587509,105570.0,105560.0,0.0369]
[1749866444630,5.88587509,105570.0,105560.0,0.07017785]
[1749866445043,5.88587509,105570.0,105560.0,0.07017787]
[1749866445247,5.88587509,105570.0,105560.0,0.04355557]
[1749866445447,5.88587509,105570.0,105560.0,0.0369]
[1749866445628,5.88587509,105570.0,105560.0,0.070178]
[1749866445843,5.88587509,105570.0,105560.0,0.06352241]
[1749866446044,5.88587509,105570.0,105560.0,0.07017802]
[1749866446241,5.69063509,105570.0,105560.0,0.07017802]
[1749866446444,5.88579509,105570.0,105560.0,0.06130395]
[1749866446649,5.88579509,105570.0,105560.0,0.07017811]
[1749866446850,5.88579509,105570.0,105560.0,0.0701781]
[1749866447062,5.88579509,105570.0,105560.0,0.07017808]
[1749866447262,5.88579509,105570.0,105560.0,0.05242976]
[1749866447672,5.88579509,105570.0,105560.0,0.07017807]
[1749866447874,5.88579509,105570.0,105560.0,0.04355561]
[1749866448080,5.88579509,105570.0,105560.0,0.07017807]
[1749866448276,5.88579509,105570.0,105560.0,0.06130392]
[1749866448688,5.88579509,105570.0,105560.0,0.04355208]
[1749866449029,5.88579509,105570.0,105560.0,0.0369]
[1749866449180,5.88579509,105570.0,105560.0,0.04576945]
[1749866449386,5.88579509,105570.0,105560.0,0.05242152]
[1749866449595,5.88579509,105570.0,105560.0,0.0369]
[1749866449808,5.88579509,105570.0,105560.0,0.05242153]
[1749866449978,5.88579509,105570.0,105560.0,0.05242149]
[1749866450181,5.88579509,105570.0,105560.0,0.05242147]
[1749866450442,5.88579509,105570.0,105560.0,0.06129092]
[1749866450596,5.90852401,105570.0,105560.0,0.05242149]
[1749866450796,5.90852401,105570.0,105560.0,0.06350825]
[1749866451022,5.90852401,105570.0,105560.0,0.06129089]
[1749866451247,5.90852401,105570.0,105560.0,0.06350824]
[1749866451441,5.90852401,105570.0,105560.0,0.04355205]
[1749866451667,5.90852401,105570.0,105560.0,0.07016027]
[1749866451975,5.90852401,105570.0,105560.0,0.05242146]
[1749866452166,5.90852401,105570.0,105560.0,0.06129087]
[1749866452412,5.90852401,105570.0,105560.0,0.07016025]
[1749866452798,5.90852401,105570.0,105560.0,0.04576941]
[1749866453005,5.90852401,105570.0,105560.0,0.07016028]
[1749866453328,5.90852401,105570.0,105560.0,0.07016032]
[1749866453732,5.90852401,105570.0,105560.0,0.0369]
[1749866453946,5.90852401,105570.0,105560.0,0.07016051]
[1749866454146,5.90852401,105570.0,105560.0,0.06350841]
[1749866454291,5.90852401,105570.0,105560.0,0.07016052]
[1749866454487,5.90852401,105570.0,105560.0,0.06129105]
[1749866454821,5.90852401,105570.0,105560.0,0.05463894]
[1749866455038,5.90852401,105570.0,105560.0,0.06129104]
[1749866455353,5.90852401,105570.0,105560.0,0.06130401]
[1749866455682,5.90852401,105570.0,105560.0,0.05464838]
[1749866455887,5.90852401,105570.0,105560.0,0.06130402]
[1749866456326,5.90852401,105570.0,105560.0,0.07017841]
[1749866456538,5.90852401,105570.0,105560.0,0.06130442]
[1749866456781,5.90852401,105570.0,105560.0,0.0701789]
[1749866457040,5.90852401,105570.0,105560.0,0.06130562]
[1749866457290,5.90852401,105570.0,105560.0,0.0546518]
[1749866457548,5.90852401,105570.0,105560.0,0.04577679]
[1749866457809,5.90852401,105570.0,105560.0,0.05243463]
[1749866458066,5.90852401,105570.0,105560.0,0.07018869]
[1749866458311,5.90852401,105570.0,105560.0,0.04355793]
[1749866458531,5.90852401,105570.0,105560.0,0.07019197]
[1749866458720,5.90852401,105570.0,105560.0,0.0369]
[1749866458965,5.90852401,105570.0,105560.0,0.0701939]
[1749866459177,5.90852401,105570.0,105560.0,0.07019467]
[1749866459401,5.90852401,105570.0,105560.0,0.06131609]
[1749866459600,5.90852401,105570.0,105560.0,0.07019367]
[1749866459805,5.90852401,105570.0,105560.0,0.06353491]
[1749866460011,5.90852401,105570.0,105560.0,0.07019355]
[1749866460440,5.90852401,105570.0,105560.0,0.07019351]
[1749866460907,5.90852401,105570.0,105560.0,0.07019353]
[1749866461114,5.90852401,105570.0,105560.0,0.07019357]
[1749866461328,5.90852401,105570.0,105560.0,0.07019348]
[1749866461539,5.90852401,105570.0,105560.0,0.06353459]
[1749866461742,5.90852401,105570.0,105560.0,0.07019326]
[1749866461948,5.90852401,105570.0,105560.0,0.06131508]
[1749866462154,5.90852401,105570.0,105560.0,0.0369]
[1749866462360,5.90852401,105570.0,105560.0,0.07019328]
[1749866462567,5.90852401,105570.0,105560.0,0.07019325]
[1749866462780,5.90852401,105570.0,105560.0,0.06131505]
[1749866462985,5.90852401,105570.0,105560.0,0.07019364]
[1749866463401,5.90852401,105570.0,105560.0,0.04355889]
[1749866463586,5.90852401,105570.0,105560.0,0.06131602]
[1749866463791,5.90852401,105570.0,105560.0,0.05243746]
[1749866463996,5.90852401,105570.0,105560.0,0.04577861]
[1749866464200,5.90852401,105570.0,105560.0,0.06353584]
[1749866464335,5.90852401,105570.0,105560.0,0.05465723]
[1749866464542,5.90852401,105570.0,105560.0,0.07019488]
[1749866464740,5.90852401,105570.0,105560.0,0.0369]
[1749866464964,5.88579509,105570.0,105560.0,0.04355898]
[1749866465178,5.90853252,105570.0,105560.0,0.07019491]
[1749866465383,5.90853252,105570.0,105560.0,0.07019475]
[1749866465549,5.90853252,105570.0,105560.0,0.07019433]
[1749866465972,5.90853252,105570.0,105560.0,0.05243719]
[1749866466368,5.90853252,105570.0,105560.0,0.07019379]
[1749866466548,5.90853252,105570.0,105560.0,0.07019381]
[1749866466683,5.90853252,105570.0,105560.0,0.06131546]
[1749866466885,5.90853252,105570.0,105560.0,0.05243733]
[1749866467087,5.90853252,105570.0,105560.0,0.07019397]
[1749866467309,5.90853252,105570.0,105560.0,0.0701939]
[1749866467524,5.90853252,105570.0,105560.0,0.06353511]
[1749866467724,5.90853252,105570.0,105560.0,0.07019385]
[1749866467929,5.90853252,105570.0,105560.0,0.06353505]
[1749866468130,5.90853252,105570.0,105560.0,0.07019385]
[1749866468368,5.90853252,105570.0,105560.0,0.07019387]
[1749866468581,5.90853252,105570.0,105560.0,0.04355877]
[1749866468787,5.90853252,105570.0,105560.0,0.04577836]
[1749866468925,5.90853252,105570.0,105560.0,0.07019387]
[1749866469128,5.90853252,105570.0,105560.0,0.0524376]
[1749866469346,5.90853252,105570.0,105560.0,0.06131623]
[1749866469547,5.90853252,105570.0,105560.0,0.06353574]
[1749866469726,5.90853252,105570.0,105560.0,0.05243734]
[1749866469922,5.90853252,105570.0,105560.0,0.07019388]
[1749866470136,5.90853252,105570.0,105560.0,0.07019373]
[1749866470459,5.90853252,105570.0,105560.0,0.07019371]
[1749866470662,5.90853252,105570.0,105560.0,0.04355874]
[1749866470862,5.90853252,105570.0,105560.0,0.0369]
[1749866471070,5.90853252,105570.0,105560.0,0.05243733]
[1749866471227,5.90853252,105570.0,105560.0,0.06131591]
[1749866471434,5.90853252,105570.0,105560.0,0.07019442]
[1749866471637,5.90853252,105570.0,105560.0,0.04577851]
[1749866471843,5.90853252,105570.0,105560.0,0.06353555]
[1749866472065,5.90853252,105570.0,105560.0,0.07019389]
[1749866472279,5.90853252,105570.0,105560.0,0.07019394]
[1749866472505,5.90853252,105570.0,105560.0,0.0635354]
[1749866472704,5.90853252,105570.0,105560.0,0.06131606]
[1749866472994,5.90853252,105570.0,105560.0,0.05243831]
[1749866473204,5.90853252,105570.0,105560.0,0.07019716]
[1749866473374,5.90853252,105570.0,105560.0,0.06131659]
[1749866473578,5.90853252,105570.0,105560.0,0.07019535]
[1749866473816,5.90853252,105570.0,105560.0,0.04355904]
[1749866474016,5.90853252,105570.0,105560.0,0.07019509]
[1749866474367,5.90853252,105570.0,105560.0,0.04355908]
[1749866474577,5.90853252,105570.0,105560.0,0.06131657]
[1749866474780,5.90853252,105570.0,105560.0,0.07019513]
[1749866475017,5.90853252,105570.0,105560.0,0.06353604]
[1749866475230,5.90853252,105570.0,105560.0,0.0812935]
[1749866475434,5.90853252,105570.0,105560.0,0.06353608]
[1749866475633,5.90853252,105570.0,105560.0,0.07019511]
[1749866475763,5.90853252,105570.0,105560.0,0.07019512]
[1749866476026,5.71337252,105570.0,105560.0,0.07019513]
[1749866476253,5.90845252,105570.0,105560.0,0.08795226]
[1749866476458,5.88571509,105570.0,105560.0,0.0790729]
[1749866476675,5.88571509,105570.0,105560.0,0.06131587]
[1749866476892,5.88571509,105570.0,105560.0,0.06131577]
[1749866477106,5.88571509,105570.0,105560.0,0.07907153]
[1749866477373,5.88571509,105570.0,105560.0,0.07241346]
[1749866477633,5.69063509,105570.0,105560.0,0.06131588]
[1749866477848,5.88571509,105570.0,105560.0,0.07907172]
[1749866478053,5.88571509,105570.0,105560.0,0.05465736]
[1749866478232,5.88571509,105570.0,105560.0,0.07907164]
[1749866478435,5.88571509,105570.0,105560.0,0.08794956]
[1749866478637,5.88571509,105570.0,105560.0,0.06131577]
[1749866478970,5.88571509,105570.0,105560.0,0.06131595]
[1749866479292,5.88571509,105570.0,105560.0,0.08795056]
[1749866479492,5.69063509,105570.0,105560.0,0.08795055]
[1749866479715,5.88571509,105570.0,105560.0,0.08795055]
[1749866479917,5.88571509,105570.0,105560.0,0.07019418]
[1749866480119,5.88571509,105570.0,105560.0,0.07241369]
[1749866480251,5.88571509,105570.0,105560.0,0.06131591]
[1749866480453,5.88571509,105570.0,105560.0,0.07019414]
[1749866480657,5.88571509,105570.0,105560.0,0.07907259]
[1749866480983,5.88571509,105570.0,105560.0,0.08795088]
[1749866481186,5.88571509,105570.0,105560.0,0.11187775]
[1749866481396,5.88571509,105570.0,105560.0,0.11187764]
[1749866481589,5.88571509,105570.0,105560.0,0.0879506]
[1749866481949,5.88571509,105570.0,105560.0,0.08795057]
[1749866482159,5.88571509,105570.0,105560.0,0.08129199]
[1749866482432,5.88571509,105570.0,105560.0,0.08795091]
[1749866483397,5.88571509,105570.0,105560.0,0.0701941]
[1749866483572,5.88571509,105570.0,105560.0,0.08795074]
[1749866483810,5.88571509,105570.0,105560.0,0.08795089]
[1749866484044,5.88571509,105570.0,105560.0,0.08129242]
[1749866484277,5.88571509,105570.0,105560.0,0.07907282]
[1749866484510,5.88571509,105570.0,105560.0,0.07019447]
[1749866484755,5.88571509,105570.0,105560.0,0.07019448]
[1749866484951,5.88571509,105570.0,105560.0,0.05465736]
[1749866485065,5.88571509,105570.0,105560.0,0.08795121]
[1749866485286,5.88571509,105570.0,105560.0,0.07019448]
[1749866485469,5.88571509,105570.0,105560.0,0.08795066]
[1749866485711,5.88571509,105570.0,105560.0,0.07019443]
[1749866485912,5.88571509,105570.0,105560.0,0.07907245]
[1749866486129,5.88571509,105570.0,105560.0,0.07019432]
[1749866486331,5.88571509,105570.0,105560.0,0.08795072]
[1749866486675,5.88571509,105570.0,105560.0,0.06131605]
[1749866486875,5.88571509,105570.0,105560.0,0.08129273]
[1749866487085,5.88571509,105570.0,105560.0,0.08795151]
[1749866487316,5.88571509,105570.0,105560.0,0.08795148]
[1749866487588,5.88571509,105570.0,105560.0,0.06131618]
[1749866487887,5.88571509,105570.0,105560.0,0.07019438]
[1749866488130,5.88571509,105570.0,105560.0,0.08795077]
[1749866488366,5.88571509,105570.0,105560.0,0.07907213]
[1749866488610,5.88571509,105570.0,105560.0,0.07019408]
[1749866488858,5.88571509,105570.0,105560.0,0.07241348]
[1749866489093,5.88571509,105570.0,105560.0,0.0879501]
[1749866489328,5.88571509,105570.0,105560.0,0.07907204]
[1749866489556,5.88571509,105570.0,105560.0,0.0879501]
[1749866489820,5.88571509,105570.0,105560.0,0.08795043]
[1749866490323,5.88571509,105570.0,105560.0,0.08795035]
[1749866490562,5.88571509,105570.0,105560.0,0.08795024]
[1749866490809,5.88571509,105570.0,105560.0,0.07907213]
[1749866491014,5.88571509,105570.0,105560.0,0.08794949]
[1749866491320,5.88571509,105570.0,105560.0,0.07906776]
[1749866491524,5.88571509,105570.0,105560.0,0.08128621]
[1749866491726,5.88571509,105570.0,105560.0,0.07019061]
[1749866491927,5.88571509,105570.0,105560.0,0.06131446]
[1749866492134,5.88571509,105570.0,105560.0,0.08794285]
[1749866492340,5.88571509,105570.0,105560.0,0.08794282]
[1749866492547,5.88571509,105570.0,105560.0,0.08128569]
[1749866492751,5.88571509,105570.0,105560.0,0.07906665]
[1749866492984,5.472835,105570.0,105560.0,0.07906669]
[1749866493187,5.67175513,105570.0,105560.0,0.07906666]
[1749866493394,5.67175513,105570.0,105560.0,0.07019055]
[1749866493598,5.67175513,105570.0,105560.0,0.06353348]
[1749866493800,5.67175513,105570.0,105560.0,0.07019056]
[1749866494004,5.67175513,105570.0,105560.0,0.08128569]
[1749866494430,5.67175513,105570.0,105560.0,0.06131444]
[1749866494630,5.67175513,105570.0,105560.0,0.07906666]
[1749866494832,5.67175513,105570.0,105560.0,0.08794277]
[1749866495070,5.67175513,105570.0,105560.0,0.06353346]
[1749866495283,5.67175513,105570.0,105560.0,0.07240962]
[1749866495487,5.67175513,105570.0,105560.0,0.08794286]
[1749866495658,5.67175513,105570.0,105560.0,0.07019073]
[1749866495894,5.67175513,105570.0,105560.0,0.08128635]
[1749866496073,5.67175513,105570.0,105560.0,0.06131462]
[1749866496274,5.67175513,105570.0,105560.0,0.05465736]
[1749866496484,5.67175513,105570.0,105560.0,0.08128666]
[1749866496614,5.67175513,105570.0,105560.0,0.07019111]
[1749866496824,5.67175513,105570.0,105560.0,0.07906754]
[1749866497064,5.67175513,105570.0,105560.0,0.07906759]
[1749866497263,5.67175513,105570.0,105560.0,0.06131469]
[1749866497480,5.67175513,105570.0,105560.0,0.05465736]
[1749866497926,5.67175513,105570.0,105560.0,0.08794495]
[1749866498129,5.67175513,105570.0,105560.0,0.08794572]
[1749866498328,5.67175513,105570.0,105560.0,0.08128804]
[1749866498697,5.67175513,105570.0,105560.0,0.07241146]
[1749866498882,5.67175513,105570.0,105560.0,0.08794629]
[1749866499034,5.67175513,105570.0,105560.0,0.07906924]
[1749866499215,5.67175513,105570.0,105560.0,0.08794627]
[1749866499416,5.67175513,105570.0,105560.0,0.08794629]
[1749866499825,5.67175513,105570.0,105560.0,0.08794624]
[1749866500044,5.67175513,105570.0,105560.0,0.08128839]
[1749866500279,5.67175513,105570.0,105560.0,0.05465736]
[1749866500477,5.67175513,105570.0,105560.0,0.07906834]
[1749866500691,5.67175513,105570.0,105560.0,0.08794496]
[1749866500869,5.67175513,105570.0,105560.0,0.07241072]
[1749866501070,5.67175513,105570.0,105560.0,0.07019156]
[1749866501205,5.67175513,105570.0,105560.0,0.08794494]
[1749866501411,5.67175513,105570.0,105560.0,0.07241069]
[1749866501672,5.67175513,105570.0,105560.0,0.07019157]
[1749866501853,5.67175513,105570.0,105560.0,0.07019159]
[1749866502047,5.67175513,105570.0,105560.0,0.07241081]
[1749866502237,5.94459513,105570.0,105560.0,0.08794507]
[1749866502451,5.94459513,105570.0,105560.0,0.08794493]
[1749866502658,5.94459513,105570.0,105560.0,0.07019155]
[1749866502833,5.94459513,105570.0,105560.0,0.08128742]
[1749866503085,5.94459513,105570.0,105560.0,0.06131486]
[1749866503249,5.94459513,105570.0,105560.0,0.08794479]
[1749866503630,5.94459513,105570.0,105560.0,0.07241066]
[1749866503837,5.94459513,105570.0,105560.0,0.06131486]
[1749866504043,5.94459513,105570.0,105560.0,0.0724105]
[1749866504282,5.94459513,105570.0,105560.0,0.07019144]
[1749866504531,5.94459513,105570.0,105560.0,0.07241077]
[1749866504751,5.94459513,105570.0,105560.0,0.05465736]
[1749866505431,5.94459513,105570.0,105560.0,0.08794528]
[1749866505660,5.94459513,105570.0,105560.0,0.0790685]
[1749866506094,5.94459513,105570.0,105560.0,0.05465736]
[1749866506581,5.94459513,105570.0,105560.0,0.0790559]
[1749866506803,5.94459513,105570.0,105560.0,0.08792768]
[1749866507656,5.94459513,105570.0,105560.0,0.08127355]
[1749866507883,5.94455513,105570.0,105560.0,0.07240177]
[1749866508108,5.94455513,105570.0,105560.0,0.0879262]
[1749866508335,5.94455513,105570.0,105560.0,0.08127243]
[1749866508551,5.94455513,105570.0,105560.0,0.05465736]
[1749866509442,5.94455513,105570.0,105560.0,0.08792603]
[1749866509673,5.94455513,105570.0,105560.0,0.06131109]
[1749866509926,5.94455513,105570.0,105560.0,0.09457977]
[1749866510125,5.94455513,105570.0,105560.0,0.08792599]
[1749866510398,5.94455513,105570.0,105560.0,0.09457971]
[1749866510849,5.94455513,105570.0,105560.0,0.0857076]
[1749866511060,5.94455513,105570.0,105560.0,0.07683692]
[1749866511262,5.94455513,105570.0,105560.0,0.09458075]
[1749866511458,5.94455513,105570.0,105560.0,0.08570904]
[1749866511666,5.94455513,105570.0,105560.0,0.09458102]
[1749866512083,5.94455513,105570.0,105560.0,0.09458065]
[1749866512284,5.60455513,105570.0,105560.0,0.07683701]
[1749866512441,5.60455513,105570.0,105560.0,0.08570899]
[1749866512645,5.60455513,105570.0,105560.0,0.07018307]
[1749866512844,5.60455513,105570.0,105560.0,0.08792682]
[1749866513085,5.60455513,105570.0,105560.0,0.07905502]
[1749866513313,5.60455513,105570.0,105560.0,0.08570899]
[1749866513516,5.60455513,105570.0,105560.0,0.09458095]
[1749866514085,5.60455513,105570.0,105560.0,0.07683702]
[1749866514301,5.60455513,105570.0,105560.0,0.06796506]
[1749866514459,5.60455513,105570.0,105560.0,0.08570885]
[1749866514661,5.60455513,105570.0,105560.0,0.07683689]
[1749866514854,5.60455513,105570.0,105560.0,0.07905463]
[1749866515159,5.60455513,105570.0,105560.0,0.09457981]
[1749866515395,5.60455513,105570.0,105560.0,0.0945798]
[1749866515590,5.60455513,105570.0,105560.0,0.09457972]
[1749866515792,5.60455513,105570.0,105560.0,0.08570809]
[1749866515999,5.60455513,105570.0,105560.0,0.06796481]
[1749866516365,5.60455513,105570.0,105560.0,0.08570808]
[1749866516538,5.60455513,105570.0,105560.0,0.07683644]
[1749866516741,5.60455513,105570.0,105560.0,0.08570797]
[1749866516982,5.60455513,105570.0,105560.0,0.09457945]
[1749866517187,5.60455513,105570.0,105560.0,0.08792593]
[1749866517359,5.60455513,105570.0,105560.0,0.09457964]
[1749866517579,5.60455513,105570.0,105560.0,0.08792593]
[1749866517764,5.60455513,105570.0,105560.0,0.0945781]
[1749866517971,5.60455513,105570.0,105560.0,0.09457718]
[1749866518126,5.60455513,105570.0,105560.0,0.09457677]
[1749866518331,5.60455513,105570.0,105560.0,0.08792363]
[1749866518557,5.60455513,105570.0,105560.0,0.08570583]
[1749866518760,5.60455513,105570.0,105560.0,0.08570596]
[1749866518965,5.60455513,105570.0,105560.0,0.09457683]
[1749866519126,5.60455513,105570.0,105560.0,0.07905283]
[1749866519328,5.60455513,105570.0,105560.0,0.08570598]
[1749866519958,5.60455513,105570.0,105560.0,0.06796418]
[1749866520218,5.60455513,105570.0,105560.0,0.08792347]
[1749866520436,5.60455513,105570.0,105560.0,0.08792349]
[1749866520651,5.60455513,105570.0,105560.0,0.0768349]
[1749866521016,5.60455513,105570.0,105560.0,0.08792355]
[1749866521224,5.60455513,105570.0,105560.0,0.09457684]
[1749866521479,5.60455513,105570.0,105560.0,0.08792368]
[1749866521690,5.60455513,105570.0,105560.0,0.07905287]
[1749866521862,5.60455513,105570.0,105560.0,0.08792376]
[1749866522069,5.60455513,105570.0,105560.0,0.09457692]
[1749866522403,5.60455513,105570.0,105560.0,0.0768373]
[1749866522627,5.60455513,105570.0,105560.0,0.08792746]
[1749866522816,5.60455513,105570.0,105560.0,0.0768373]
[1749866522955,5.60455513,105570.0,105560.0,0.09458155]
[1749866523158,5.60455513,105570.0,105560.0,0.08570943]
[1749866523372,5.60455513,105570.0,105560.0,0.09458155]
[1749866523564,5.60455513,105570.0,105560.0,0.0768373]
[1749866523768,5.60455513,105570.0,105560.0,0.09458155]
[1749866524164,5.60455513,105570.0,105560.0,0.09457693]
[1749866524387,5.60455513,105570.0,105560.0,0.09457694]
[1749866524626,5.60455513,105570.0,105560.0,0.07683499]
[1749866524874,5.60455513,105570.0,105560.0,0.09457646]
[1749866525093,5.60455513,105570.0,105560.0,0.09457621]
[1749866525306,5.60455513,105570.0,105560.0,0.06796411]
[1749866525511,5.60455513,105570.0,105560.0,0.08792317]
[1749866525717,5.60455513,105570.0,105560.0,0.07905256]
[1749866525926,5.33171513,105570.0,105560.0,0.09457634]
[1749866526563,5.33171513,105570.0,105560.0,0.09457632]
[1749866526767,5.33171513,105570.0,105560.0,0.087927]
[1749866526972,5.33171513,105570.0,105560.0,0.085709]
[1749866527181,5.33171513,105570.0,105560.0,0.07018308]
[1749866527394,5.33171513,105570.0,105560.0,0.08570933]
[1749866527600,5.33171513,105570.0,105560.0,0.08571022]